Cogmind - Beta 16.1 @@@ ROGUE MODE // 2026.04.14 @ 13:17:12 Player: Lazz Result: Destroyed by X-62 Marksman with Gauss Rifle Performance ------------- Evolutions (2) 1000 Regions Visited (7) 1400 Robots Destroyed (82) 410 Value Destroyed (2566) 2566 Prototype IDs (26) 520 Alien Tech Used (0) 0 Bonus (1296) 1296 TOTAL SCORE: 7192 Bonus ------- High Alert Combat Kills 289 Follower Combat Kills 7 Entered Garrisons 200 Used RIF Installer 500 Aligned with FarCom 300 Cogmind --------- Core Integrity 0/550 Matter 226/300 Energy 160/160 System Corruption 1% Temperature Cool (0) Movement Treading (250) Ox1 Location -8/Materials Parts ------- > --- POWER (1) -------- Light Nuclear Core > --- PROPULSION (3) --- Armored Treads Armored Treads Improved Carbon-fiber Leg > --- UTILITY (3) ------ High-capacity Storage Unit Improved Light Armor Plating Relay Coupler [Heavy] (21) > --- WEAPON (4) ------- XL Autogun Subcomponent XL Autogun Subcomponent Datajack Great Maul > --- INVENTORY (20) --- Improved Carbon-fiber Leg Improved Heat Sink Improved Heat Sink Compact Battery (200) Large Matter Pod (150) Improved Signal Interpreter Recoil Stabilizer Improved Utility Shielding Improved Utility Shielding Hacking Suite Authchip [R/Combat] XL Autogun Subcomponent Peak State ------------ > --- POWER ------------ Light Nuclear Core > --- PROPULSION ------- Aluminum Leg Aluminum Leg Carbon-fiber Leg > --- UTILITY ---------- Improved Heat Sink High-capacity Storage Unit Improved Targeting Computer > --- WEAPON ----------- XL Autogun Array > --- INVENTORY -------- Aluminum Leg Aluminum Leg Improved Heat Sink Compact Battery Large Matter Pod Structural Scanner Terrain Scan Processor Improved Utility Shielding Improved Utility Shielding Improved Light Armor Plating Authchip [R/Combat] Relay Coupler [Heavy] Light Assault Rifle Light Assault Rifle Light Assault Rifle Heavy Assault Rifle Heavy Assault Rifle Great Maul [Rating: 54] Favorites ----------- Power Light Nuclear Core Engine Light Ion Engine Power Core Light Nuclear Core Propulsion Aluminum Leg Treads Light Treads Leg Aluminum Leg Utility High-capacity Storage Unit Device Improved Heat Sink Storage High-capacity Storage Unit Processor Improved Targeting Computer Hackware Relay Coupler [Heavy] Protection Improved Light Armor Plating Weapon Light Assault Rifle Energy Gun Medium Laser Ballistic Gun Light Assault Rifle Ballistic Cannon Battle Cannon Special Weapon Mining Laser Impact Weapon Great Maul Special Melee Weapon Datajack Build | -11 -10 -10 -10 -9 -8 -8 -8 ------- Run | Yrd Mat Min Exi Min Mat Gar Mat Slots Evolved 4 | . . . . . 4 . . Power . | . . . . . . . . Propulsion 1 | . . . . . 1 . . Utility 1 | . . . . . 1 . . Weapon 2 | . . . . . 2 . . Parts Attached 54 | 7 5 8 1 2 7 7 17 Power 8 | 1 1 1 . . 1 2 2 Engine 3 | 1 1 1 . . . . . Core 5 | . . . . . 1 2 2 Reactor . | . . . . . . . . Propulsion 18 | 2 3 2 . 1 4 3 3 Treads 5 | . . 2 . 1 . . 2 Leg 13 | 2 3 . . . 4 3 1 Wheel . | . . . . . . . . Hover . | . . . . . . . . Flight . | . . . . . . . . Utility 11 | 2 . 2 1 1 1 2 2 Device 4 | 1 . 1 . 1 . 1 . Storage 2 | 1 . . 1 . . . . Processor 1 | . . . . . . 1 . Hackware 1 | . . . . . . . 1 Protection 3 | . . 1 . . 1 . 1 Artifact . | . . . . . . . . Weapon 17 | 2 1 3 . . 1 . 10 Energy Gun 1 | 1 . . . . . . . Energy Cannon . | . . . . . . . . Ballistic Gun 12 | 1 . 2 . . 1 . 8 Ballistic Cannon 1 | . . 1 . . . . . Launcher . | . . . . . . . . Special Weapon 1 | . 1 . . . . . . Impact Weapon 1 | . . . . . . . 1 Slashing Weapon . | . . . . . . . . Piercing Weapon . | . . . . . . . . Special Melee Weapon 1 | . . . . . . . 1 Unidentified Prototypes 1 | . . . . . . . 1 Parts Lost 20 | . . 5 . 3 . 1 11 Power 4 | . . 1 . . . 1 2 Propulsion 6 | . . 2 . 1 . . 3 Utility 5 | . . 1 . 2 . . 2 Weapon 5 | . . 1 . . . . 4 Highest Loss Streak 11 | . . 5 . 1 . 1 11 To Critical Strikes . | . . . . . . . . Average Backups 10 | 1 7 7 6 6 6 16 13 Power . | . . . . . . . . Propulsion 1 | . . 1 . . . 2 . Utility 6 | . 4 5 4 3 4 7 10 Weapon 3 | 1 2 1 2 2 2 6 2 Tool/Special . | . . . . . . . . Unused Backups 18 | . . 1 2 . . 4 11 Power . | . . . . . . . . Propulsion 1 | . . . . . . . 1 Utility 17 | . . 1 2 . . 4 10 Weapon . | . . . . . . . . Tool/Special . | . . . . . . . . Average Slot Usage (%) 84 | . 100 91 100 90 67 72 85 Engine 6 | . 14 11 14 14 6 . . Core 4 | . . . . . 2 8 7 Treads 9 | . . 21 28 28 9 . 5 Leg 16 | . 28 4 . . 13 27 16 Device 8 | . 14 10 14 3 9 7 4 Storage 11 | . 14 14 14 14 9 9 9 Processor 3 | . . . . . . 8 4 Protection 1 | . . . . 2 . 1 6 Energy Gun 2 | . 14 10 . . . . . Ballistic Gun 13 | . 13 13 14 9 9 9 25 Ballistic Cannon 3 | . . 3 14 14 8 . . Peak Build Rating 54 | 7 8 11 14 15 42 54 45 Average Rating 27 | 5 7 9 12 12 15 52 30 On Entrance 15 | . 7 8 11 14 12 20 54 Avg Prop Armor Cover (%) 4 | . . . . . 6 . 4 Naked Turns . | . . . . . . . . Heaviest Build 63 | 14 14 14 48 50 59 63 59 Greatest Support 43 | 20 20 40 40 43 40 35 40 Greatest Overweight (x) 17 | 4 . 2 1 1 2 1 17 Average Overweight (x) . | . . . . 1 1 1 1 Largest Inventory Capacity 20 | 8 8 8 20 20 20 20 20 Average Capacity 15 | 7 8 8 9 20 20 20 20 Most Carried 20 | 3 8 8 8 10 12 20 20 Average Carried 11 | 1 7 7 7 9 9 16 15 Final Capacity 20 | 8 8 8 20 20 20 20 20 Final Carried 18 | 3 8 8 8 9 12 18 12 Class Distribution -------------------- 32% | Scavenger-Skirmisher 30% | Mutant 21% | Scavenger-Mutant 9% | Skirmisher 3% | Scavenger-Tank Dominant Class ---------------- Mutant | -10/Materials Scavenger-Mutant | -10/Mines Scavenger-Mutant | -10/Exiles Mutant | -9/Mines Scavenger-Mutant | -8/Materials Scavenger-Skirmisher | -8/Garrison Scavenger-Skirmisher | -8/Materials Resources | -11 -10 -10 -10 -9 -8 -8 -8 ----------- Run | Yrd Mat Min Exi Min Mat Gar Mat Matter Collected 2419 | 286 174 89 . 164 49 1243 414 Remotely . | . . . . . . . . Salvage Created 2906 | 202 255 188 . 172 137 1235 717 Parts 188 | 19 16 19 . 5 8 84 37 Haulers Intercepted 2 | . 1 . . . . . 1 Recyclers Shooed 1 | . . . . . . . 1 Parts Field Recycled . | . . . . . . . . Retrieved Matter . | . . . . . . . . Parts Self-Destructed . | . . . . . . . . Prevented . | . . . . . . . . Parts Restored . | . . . . . . . . Kills | -11 -10 -10 -10 -9 -8 -8 -8 ------- Run | Yrd Mat Min Exi Min Mat Gar Mat Combat Hostiles Destroyed 69 | . 4 6 . 6 3 36 14 Guns 60 | . 3 4 . . 3 36 14 Cannons 7 | . . 1 . 6 . . . Classes Destroyed 16 | 3 3 2 . 2 . 2 4 Worker 2 | 2 . . . . . . . Builder 2 | . 1 . . 1 . . . Tunneler 6 | 5 . 1 . . . . . Hauler 2 | . 1 . . . . . 1 Recycler 1 | 1 . . . . . . . Operator 1 | . . . . . . . 1 Watcher 1 | . . . . . . . 1 Swarmer 24 | . . 4 . . . 17 3 Grunt 28 | . 4 . . 3 3 10 8 Brawler 2 | . . . . 1 . 1 . Duelist 1 | . . . . . . 1 . Sentry 6 | . . 2 . . . 4 . Specialist 2 | . . . . . . . 2 Programmer 3 | . . . . . . 3 . Heavy 1 | . . . . . . . 1 Assembled 2 | . . . . 2 . . . Best Kill Streak 10 | 6 2 3 . 2 3 10 8 Combat Bots Only 10 | . 2 3 . 2 3 10 7 Max Kills in Single Turn 2 | 1 1 2 . 1 1 1 1 Gunslinging . | . . . . . . . . Exploded . | . . . . . . . . Melee . | . . . . . . . . Uniques/NPCs Destroyed . | . . . . . . . . Combat | -11 -10 -10 -10 -9 -8 -8 -8 -------- Run | Yrd Mat Min Exi Min Mat Gar Mat Hostile Shots Fired 291 | . 23 58 . 53 11 43 103 Missed 81 | . 5 15 . 13 3 12 33 Hits 210 | . 18 43 . 40 8 31 70 Melee 6 | . . . . 6 . . . Projectile 204 | . 18 43 . 34 8 31 70 Critical Strikes 11 | . 1 3 . 2 . . 5 Damage Taken 3518 | . 274 574 . 573 121 507 1469 Core 788 | . 17 143 . 65 17 74 472 Absorbed by Shields . | . . . . . . . . Core Remaining (%) 55 | 100 . . . 10 . . . Volleys Fired 221 | 16 26 19 . 32 6 63 59 Largest 3 | 2 2 2 . 2 1 1 3 Hottest 100 | 70 100 70 . 100 60 60 63 Shots Fired 368 | 32 50 36 . 46 6 63 135 Gun 333 | 32 48 35 . 14 6 63 135 Cannon 18 | . . 1 . 17 . . . Launcher . | . . . . . . . . Special 17 | . 2 . . 15 . . . Kinetic 293 | 16 24 18 . 31 6 63 135 Thermal 75 | 16 26 18 . 15 . . . Explosive . | . . . . . . . . Electromagnetic . | . . . . . . . . Robot Hit Streak 17 | 10 7 10 . 11 7 14 17 Robot Miss Streak 6 | 4 2 2 . 2 2 6 4 Penetration Max . | . . . . . . . . Secondary Targets 4 | . . 1 . . . . 3 Max Gunslinging Chain 1 | . . 1 . . . . 1 Shots Hit Robots 258 | 21 33 24 . 21 6 53 100 Core Hits 145 | 11 16 8 . 10 6 50 44 Critical Kills . | . . . . . . . . Critical Parts Destroyed 1 | . . . . . . . 1 Critical Strikes 11 | 2 4 3 . 1 . . 1 Burn 9 | 2 4 3 . . . . . Destroy 1 | . . . . . . . 1 Blast 1 | . . . . 1 . . . Melee Attacks 2 | . . . . . . . 2 Impact 2 | . . . . . . . 2 Slashing . | . . . . . . . . Piercing . | . . . . . . . . Sneak Attacks . | . . . . . . . . Combat Hostiles . | . . . . . . . . Follow-up Attacks . | . . . . . . . . Damage Inflicted 5263 | 231 351 279 . 367 352 2256 1427 Guns 4951 | 231 351 263 . 71 352 2256 1427 Cannons 288 | . . 16 . 272 . . . Explosions . | . . . . . . . . Melee . | . . . . . . . . Ramming . | . . . . . . . . Kinetic 4686 | 57 145 106 . 343 352 2256 1427 Thermal 577 | 174 206 173 . 24 . . . Explosive . | . . . . . . . . Electromagnetic . | . . . . . . . . Impact . | . . . . . . . . Slashing . | . . . . . . . . Piercing . | . . . . . . . . Highest Corruption 1 | . . . . . . 1 1 Average Corruption 1 | . . . . . . 1 1 Corruption Purged . | . . . . . . . . Corruption Blocked . | . . . . . . . . Effects 6 | . . . . . . . 6 Message Errors 1 | . . . . . . . 1 Matter Fused 1 | . . . . . . . 1 Data Loss (minor) 1 | . . . . . . . 1 Data Loss (major) 3 | . . . . . . . 3 Overload Shots . | . . . . . . . . Overflow Damage 20 | . . . . . . 20 . Projectiles . | . . . . . . . . Explosions 20 | . . . . . . 20 . Melee . | . . . . . . . . Knockbacks 1 | . . . . 1 . . . Impact . | . . . . . . . . Kinetic 1 | . . . . 1 . . . Secondary . | . . . . . . . . Self-Inflicted Damage 140 | . . . . . . 140 . Shots 1 | . . . . . . 1 . Rammed . | . . . . . . . . Targets Rammed . | . . . . . . . . Kicked . | . . . . . . . . Crushed . | . . . . . . . . Highest Temperature 231 | 170 201 213 . 59 231 154 76 Average Temperature 60 | 76 73 115 . 16 116 51 21 Received Heat Transfer 1026 | . 171 216 . 108 72 81 378 Siege Activations . | . . . . . . . . Martial Activations . | . . . . . . . . Shielding Activations . | . . . . . . . . Robots Disrupted . | . . . . . . . . Combat Hostiles . | . . . . . . . . Robots Corrupted . | . . . . . . . . Combat Hostiles . | . . . . . . . . Parts Fried . | . . . . . . . . Impact Corruptions . | . . . . . . . . Robots Melted 2 | . 1 1 . . . . . Combat Hostiles 2 | . 1 1 . . . . . Parts Melted 6 | 2 2 2 . . . . . Heat Transferred 2344 | 666 888 740 . 50 . . . Parts Sabotaged . | . . . . . . . . Parts Stolen . | . . . . . . . . Parts Stripped . | . . . . . . . . Power Chain Reactions . | . . . . . . . . Alert | -11 -10 -10 -10 -9 -8 -8 -8 ------- Run | Yrd Mat Min Exi Min Mat Gar Mat Maximum Alert Level 3 | . . . . . . 3 2 Low Security (%) 57 | 100 100 100 . 100 100 14 29 Level 1 11 | . . . . . . 10 44 Level 2 15 | . . . . . . 30 25 Level 3 15 | . . . . . . 44 . Level 4 . | . . . . . . . . Level 5 . | . . . . . . . . High Security . | . . . . . . . . Max Security . | . . . . . . . . Peak Influence 1068 | 20 49 80 . 32 75 1068 532 Initial 520 | . . 9 . . 1 2 520 Average 285 | 6 6 21 . 3 17 639 311 Influence Increases 2180 | 40 132 190 . 100 79 1116 523 Destroy 0b10 Robot/C 1360 | . 80 120 . 80 60 740 280 Destroy 0b10 Robot/NC 75 | 40 10 5 . 5 . . 15 Destroy Leader 146 | . 22 20 . 10 10 20 64 Allied During Kill 20 | . . . . . . 20 . Successful Hack 50 | . 5 . . . 4 30 11 Disable Machine 15 | . 15 . . . . . . Anti-Garrison Action 200 | . . . . . . 200 . Destroy Structure 119 | . . . . 5 5 106 3 Lose Combat Pursuer 195 | . . 45 . . . . 150 Influence Decreases 1903 | 40 107 184 31 95 80 52 1314 Entered New Map 601 | . . 16 31 . 4 2 548 Time Decay 773 | 40 107 119 . 75 76 . 356 Lost Part 189 | . . 49 . 20 . 10 110 Lost Ally 40 | . . . . . . 40 . Purge Threat 300 | . . . . . . . 300 Squads Dispatched 6 | . 1 . . . 1 . 4 Investigation 2 | . 1 . . . 1 . . Extermination . | . . . . . . . . Reinforcement 4 | . . . . . . . 4 Assault . | . . . . . . . . Garrison . | . . . . . . . . Intercept . | . . . . . . . . Searches Triggered . | . . . . . . . . Construction Impeded . | . . . . . . . . Haulers Reinforced . | . . . . . . . . Active Scanning Responses . | . . . . . . . . Cargo Convoy Interrupts . | . . . . . . . . Stealth | -11 -10 -10 -10 -9 -8 -8 -8 --------- Run | Yrd Mat Min Exi Min Mat Gar Mat Distress Signals . | . . . . . . . . Communications Jammed . | . . . . . . . . Distress Signals . | . . . . . . . . Times Spotted 91 | . 5 9 . 6 3 37 31 Peak Tracking Total 10 | . 3 5 . 2 3 10 7 Tactical Retreats 7 | . . 2 . 1 . . 4 Traps | -11 -10 -10 -10 -9 -8 -8 -8 ------- Run | Yrd Mat Min Exi Min Mat Gar Mat Traps Triggered 7 | . 1 . . . . 6 . Indirectly . | . . . . . . . . Trap Hack Attempts . | . . . . . . . . Triggered . | . . . . . . . . Disarmed . | . . . . . . . . Reprogrammed . | . . . . . . . . Reused . | . . . . . . . . Traps Extracted . | . . . . . . . . Installed . | . . . . . . . . Triggered . | . . . . . . . . Machines | -11 -10 -10 -10 -9 -8 -8 -8 ---------- Run | Yrd Mat Min Exi Min Mat Gar Mat Machines Disabled 3 | . 1 . . . . 2 . Max in Single Turn 2 | . 1 . . . . 2 . Phase Generator 1 | . . . . . . 1 . Machines Repaired . | . . . . . . . . Machines Dismantled . | . . . . . . . . Machines Sabotaged . | . . . . . . . . Overloaded Fab Kills . | . . . . . . . . Hacking | -11 -10 -10 -10 -9 -8 -8 -8 --------- Run | Yrd Mat Min Exi Min Mat Gar Mat Machines Accessed 16 | . 4 . 2 . 3 4 3 Terminals 12 | . 4 . . . 2 4 2 Fabricators . | . . . . . . . . Repair Stations . | . . . . . . . . Recycling Units . | . . . . . . . . Scanalyzers 1 | . . . . . . . 1 Garrison Access 1 | . . . . . 1 . . Total Hacks 54 | . 13 . 10 . 7 9 15 Successful 24 | . 2 . 10 . 1 2 9 Failed 28 | . 10 . . . 6 7 5 Catastrophic 3 | . . . . . 1 2 . Database Lockouts 2 | . 1 . . . . . 1 Manual 15 | . 10 . 1 . 3 . 1 Terminals 35 | . 13 . . . 6 9 7 Fabricators . | . . . . . . . . Repair Stations . | . . . . . . . . Recycling Units . | . . . . . . . . Scanalyzers 8 | . . . . . . . 8 Garrison Access 1 | . . . . . 1 . . Terminal Hacks 18 | . 2 . 10 . . 2 4 Record 9 | . . . 9 . . . . Robot Analysis 1 | . 1 . . . . . . Prototype ID Bank 1 | . 1 . . . . . . Emergency Access Points 2 | . . . . . . 1 1 Unreport Threat 2 | . . . . . . . 2 Zone Layout 1 | . . . . . . . 1 Security Stations 1 | . . . . . . 1 . Proto ID Catalog 1 | . . . 1 . . . . Fabricator Hacks . | . . . . . . . . Repair Station Hacks . | . . . . . . . . Recycling Unit Hacks . | . . . . . . . . Scanalyzer 5 | . . . . . . . 5 Retrieve Study 5 | . . . . . . . 5 Garrison Access Hacks 1 | . . . . . 1 . . Unlock Access 1 | . . . . . 1 . . Unauthorized Hacks . | . . . . . . . . Terminals . | . . . . . . . . Fabricators . | . . . . . . . . Repair Stations . | . . . . . . . . Recycling Units . | . . . . . . . . Scanalyzers . | . . . . . . . . Garrison Access . | . . . . . . . . Data Cores Recovered . | . . . . . . . . Used . | . . . . . . . . Hacking Detections 13 | . 4 . . . 2 4 3 Full Trace Events 2 | . . . . . 1 1 . Feedback Events . | . . . . . . . . Feedback Blocked . | . . . . . . . . Robot Schematics Acquired . | . . . . . . . . Robots Built . | . . . . . . . . Authchips . | . . . . . . . . Time . | . . . . . . . . Total Robot Build Rating . | . . . . . . . . Part Schematics Acquired . | . . . . . . . . Parts Built . | . . . . . . . . Authchips . | . . . . . . . . Time . | . . . . . . . . Total Part Build Rating . | . . . . . . . . Part Studies Acquired 5 | . . . . . . . 5 Parts Repaired . | . . . . . . . . Time . | . . . . . . . . Parts Recycled . | . . . . . . . . Recycled Matter . | . . . . . . . . Retrieved Matter . | . . . . . . . . Retrieved Components . | . . . . . . . . Parts Scanalyzed . | . . . . . . . . Part Schematics Acquired . | . . . . . . . . Parts Damaged . | . . . . . . . . Bothacking | -11 -10 -10 -10 -9 -8 -8 -8 ------------ Run | Yrd Mat Min Exi Min Mat Gar Mat Used RIF Installer 1 | . . . . . . 1 . Robots Hacked . | . . . . . . . . Non-combat . | . . . . . . . . Combat . | . . . . . . . . Robot Hacks Applied . | . . . . . . . . Relay Couplers Released . | . . . . . . . . Attached 1 | . . . . . . . 1 Fabnet Peak Effective % . | . . . . . . . . Robots Rewired . | . . . . . . . . Allies Hacked . | . . . . . . . . Hacks Repelled . | . . . . . . . . Allies | -11 -10 -10 -10 -9 -8 -8 -8 -------- Run | Yrd Mat Min Exi Min Mat Gar Mat Total Allies 2 | . . . . . . 2 . Largest Group 2 | . . . . . . 2 . Highest-Rated Group 45 | . . . . . . 45 . Highest-Rated Ally 25 | . . . . . . 25 . Total Orders . | . . . . . . . . Ally Attacks 6 | . . . . . . 6 . Total Damage 133 | . . . . . . 133 . Kills 1 | . . . . . . 1 . Allies Corrupted . | . . . . . . . . Allies Melted . | . . . . . . . . Intel | -11 -10 -10 -10 -9 -8 -8 -8 ------- Run | Yrd Mat Min Exi Min Mat Gar Mat Active Infowar (turns) 2112 | 59 752 346 511 143 297 4 . Terrain 979 | . . 327 511 141 . . . Structural 303 | . . . . 2 297 4 . Seismic 830 | 59 752 19 . . . . . Robot Analysis Total 1 | . 1 . . . . . . Derelict Logs Recovered 3 | . . . . 3 . . . Drone Launches . | . . . . . . . . Drone Recoveries . | . . . . . . . . Exploration | -11 -10 -10 -10 -9 -8 -8 -8 ------------- Run | Yrd Mat Min Exi Min Mat Gar Mat Turns Passed 5294 | 155 752 455 511 615 297 1700 809 Spaces Moved 2179 | 75 267 210 303 201 126 804 193 Core 26 | 17 . 4 . . . . 5 Treads 785 | . . 174 303 201 56 . 51 Legs 1368 | 58 267 32 . . 70 804 137 Wheels . | . . . . . . . . Hover . | . . . . . . . . Flight . | . . . . . . . . Fastest Speed 50 | 50 120 120 160 240 190 190 175 Average Speed 181 | 126 120 153 167 240 213 190 220 Slowest Speed 900 | 250 120 160 240 240 260 190 900 Overloaded Moves . | . . . . . . . . Propulsion Burnouts . | . . . . . . . . Robots Hopped . | . . . . . . . . Potential Cave-ins . | . . . . . . . . Cave-ins Triggered . | . . . . . . . . Exploration Rate (%) 41 | 4 46 46 61 43 13 98 19 Regions Visited 7 Branch Regions 3 Pre-discovered Areas 1 | . . . . 1 . . . Known Exits Taken 1 | . . . . . 1 . . Unknown Exits Taken 5 | 1 1 1 1 1 . . . Scrap Searched 2 | . . 1 . 1 . . . Spaces Dug 9 | . . . . 7 . . 2 Terrain Destroyed 83 | . . . . 7 5 68 3 Melee 2 | . . . . . . . 2 Projectile 13 | . . . . 7 5 . 1 AOE 68 | . . . . . . 68 . Terrain Rammed . | . . . . . . . . Walls Destroyed . | . . . . . . . . Machines Disabled . | . . . . . . . . Actions | -11 -10 -10 -10 -9 -8 -8 -8 --------- Run | Yrd Mat Min Exi Min Mat Gar Mat Total 3266 | 103 649 311 309 258 153 985 498 Wait 693 | 3 344 68 . 16 6 50 206 Move 2173 | 74 266 209 302 200 126 803 193 Hop . | . . . . . . . . Pick Up 38 | 3 4 3 1 2 1 17 7 Fast Attach 24 | 7 . 5 . 1 4 . 7 Attach 21 | . . 2 . 2 3 2 12 Detach 7 | . . . . . 3 2 2 Swap 25 | . 6 1 1 5 2 6 4 Drop 32 | . 3 4 5 . 2 12 6 Fire 221 | 16 26 19 . 32 6 63 59 Melee 2 | . . . . . . . 2 Ram . | . . . . . . . . Kick . | . . . . . . . . Crush . | . . . . . . . . Escape Stasis 30 | . . . . . . 30 . Rewire . | . . . . . . . . Trap . | . . . . . . . . Miscellaneous . | . . . . . . . . Route ------- -11/Scrapyard -10/Materials -10/Mines (discovered 2 exits: [*Mat] / *Exi) -10/Exiles -9/Mines -8/Materials -8/Garrison (discovered 4 exits: *Mat x4) -8/Materials (discovered 1 exit: [*Fac]) History --------- Turn | Location | Event 7 | -11/Scrapyard | Discovered new exit (range 15) 156 | -11/Scrapyard | Entered Materials 290 | -10/Materials | Central database locked down 311 | -10/Materials | Build established: Mutant 899 | -10/Materials | Discovered new exit (range 8) 908 | -10/Materials | Entered Mines 909 | -10/Mines | Assembled infested the area 981 | -10/Mines | Core integrity fell below 50% 1008 | -10/Mines | Lost 5 parts (1p2n1u1w) 1220 | -10/Mines | A weapon hastily lodged in a ceiling crevice suddenly fell to the ground 1307 | -10/Mines | Discovered new exit (range 7) 1321 | -10/Mines | Build established: Scavenger-Mutant 1355 | -10/Mines | Deemed a non-threat by the Exiles lab entrance 1355 | -10/Mines | Discovered new exit (range 5) 1363 | -10/Mines | Entered Exiles 1407 | -10/Exiles | Met 8R-AWN 1432 | -10/Exiles | Met EX-HEX 1480 | -10/Exiles | Met EX-BIN 1575 | -10/Exiles | Aligned with FarCom system 1576 | -10/Exiles | Given EX-Vault access code 1613 | -10/Exiles | Opened EX-Vault 1626 | -10/Exiles | Found XL Autogun Array 1659 | -10/Exiles | Warned to stay clear of 0b10 Research branches 1702 | -10/Exiles | Met EX-DEC 1774 | -10/Exiles | Discovered new exit (range 12) 1874 | -10/Exiles | Left Exiles lab with XL Autogun Array 1874 | -10/Exiles | Entered Mines 1969 | -9/Mines | Excavation squad dispatched 1969 | -9/Mines | A large section of the Mines collapsed 2125 | -9/Mines | Core integrity fell below 20% 2391 | -9/Mines | Learned Materials security intel 2402 | -9/Mines | Discovered new exit (range 13) 2421 | -9/Mines | Learned Materials emergency access door positions 2489 | -9/Mines | Entered Materials 2489 | -8/Materials | Evolved 4 slots: Propulsion x1, Utility x1, Weapon x2 2786 | -8/Materials | Identified exit to Garrison 2786 | -8/Materials | Entered Garrison 2790 | -8/Garrison | Triggered checkpoint 2959 | -8/Garrison | Rescued a captive Derelict 2960 | -8/Garrison | Rescued a captive Derelict 3078 | -8/Garrison | Triggered checkpoint 3086 | -8/Garrison | Destroyed 10 combat bots 3103 | -8/Garrison | Build established: Skirmisher 3195 | -8/Garrison | Discovered new exit (range 14) 3209 | -8/Garrison | Phase Generator disabled 3392 | -8/Garrison | Learned Materials security intel 3408 | -8/Garrison | Triggered checkpoint 3480 | -8/Garrison | Triggered checkpoint 3510 | -8/Garrison | Build established: Scavenger-Skirmisher 3553 | -8/Garrison | Discovered new exit (range 10) 3604 | -8/Garrison | Triggered checkpoint 3619 | -8/Garrison | Discovered new exit (range 3) 3700 | -8/Garrison | Installed Relay Interface Framework 3894 | -8/Garrison | Triggered checkpoint 4036 | -8/Garrison | Discovered new exit (range 13) 4120 | -8/Garrison | Triggered checkpoint 4486 | -8/Garrison | Entered Materials 4519 | -8/Materials | Central database locked down 4911 | -8/Materials | Core integrity fell below 50% 4960 | -8/Materials | Core integrity fell below 20% 4976 | -8/Materials | Lost 11 parts (2p3n2u4w) 5025 | -8/Materials | Destroyed 7 combat bots 5294 | -8/Materials | Discovered new exit (range 3) 5295 | -8/Materials | Destroyed by X-62 Marksman with Gauss Rifle Last Messages --------------- 05032_ Acquired Lgt. Nuclear Core+. 05038_ Destroyed Flight Unit. 05038_ S-10 Pest destroyed. 05047_ Acquired Arm. Treads. 05048_ Acquired 52 matter. 05049_ U-05 Engineer builds a Wall. 05055_ Acquired Imp. Carbon-fiber Leg. 05058_ U-05 Engineer builds a Wall. 05072_ U-05 Engineer builds a Door. 05072_ Acquired Arm. Treads. 05076_ Acquired 59 matter. 05099_ Acquired Recoil Stabilizer. 05151_ ALERT: Security rotation in progress. 05214_ System corrupted: Substantial component data lost. 05271_ ALERT: Suspicious intruders detected, dispatching Specialist reinforcements to area. 05287_ Penetrated by Slug. 05294_ EXIT=FOUND 05295_ Penetrated by Slug. Map ----- +----------------------------------------------------+ | #??????????????????????????????????????????? | | #??????????????????????????????????????????? | | #######??????????????????????????????????????????? | | #???#####??????????????????????????????????????? | | #???# ??????????????????????????????????????? | | #???# ??????????????????????????????????????? | | ???????????????????? ??????????????????????????? | | ???????????????????# #?????????????????????????? | | ???????????????????#g #?????????????????????????? | | ###????????????????+ #?????????????????????????? | | ?????????????????#^ #?????????????????????????? | | #?????????########## #?????????????????????????? | | #?????????# T # #?????????????????????????? | | #?????????# # #??????#??????????????????? | | +?????????# # #????? #??????????????????? | | #?????????# # #????? #??????????????????? | | #?????????? + #???? +??????????????????? | | #?????????? """ # #???? #??????????????????? | | #?????????# """ *# #??? #??????????????????? | | #?????????#=""" !%# #### #??????????????????? | | #?????????#[%* ![*# #??????????????????? | | ####################*![ * #??????????????????? | | +==%!%=[ [ %% %[ [%%!!! #??????????????????? | | #####################+##### +??????????????????? | | ????????????????# ! ! [ x # #??????????????????? | | ????????????????# """x"""@; H #??????????????????? | | ????????????????# """ """ ; #??????????????????? | | ????????????????# """ """ #####??????????????????? | | ????????????????# """ """ #??????????????????????? | | ????????????????# #??????????????????????? | | ????????????????# #??????????????????????? | | ????????????????# #??????????????????????? | | ????????????????###########??????????????????????? | | ?????????????????????????????????????????????????? | | | | | | | | | | | | | | | | | | | | | | | | | | | | | | | | | +----------------------------------------------------+ Best States ------------- Heat Dissipation 45 Energy Generation 15 Energy Capacity 250 Matter Stores 300 Matter Capacity 300 Sight Range 16 Terrain Scan Range 16 Terrain Scan Density 10 Armor Coverage 150 Utility Shielding 66 Evasion (%) 55 Targeting Accuracy 6 Recoil Reduction 2 Relay Coupler Types 1 Relay Coupler Value 21 Authchip Count 1 Item Schematics ----------------- None Robot Schematics ------------------ None Fabricated ------------ Nothing Repaired ---------- Nothing Studied --------- Lgt. Assault Rifle | -8/Materials | Hacked Aluminum Leg | -8/Materials | Hacked Carbon-fiber Leg | -8/Materials | Hacked Hvy. Assault Rifle | -8/Materials | Hacked Lgt. Nuclear Core | -8/Materials | Hacked Alien Tech Used ----------------- None Achievements -------------- None Challenges ------------ None Game ------ Seed AntisysGlidesysThermoblaster Manual? 0 Play Time 00:36:21 Cumulative 175.8 hours Start 2026.04.14 @ 09:51:49 End 2026.04.14 @ 13:17:12 Sessions 5 Manual Loads 0 Difficulty Rogue Special Mode None Game No. 249 Rogue 249 Adventurer 0 Explorer 0 Win Type - Total 2 Types 1/0/0/1/0/0/0/0/0/0 Lore% 71 Gallery% 59 Achievement% 45 Wizard Run 0 Options --------- Layout 2 ASCII 0 Keyboard 0 Movement Mouse Keybinds 0 Fullscreen 1 Font 24/Smallcaps Map View 50x44 Zoom Use 0% Tactical HUD 1 Map Filters NONE Filters NONE Steam 1 RUN: 59679859-e8d5-4d89-85d8-2e66ca7579bb